bitfinex/quotes_SOLUSD_20240624
["timestamp","ask_amount","ask_price","bid_price","bid_amount"]
[1719249222604,7.8436,127.5,127.41,2.56876921]
[1719249222811,15.8345,127.56,127.42,21.5721]
[1719249223114,7.8401,127.55,127.43,20.34]
[1719249223320,7.8395,127.56,127.43,22.56841941]
[1719249223488,50.5517,127.61,127.43,22.56841941]
[1719249224107,7.8386,127.58,127.43,22.56841941]
[1719249224413,7.8386,127.58,127.44,6.3666]
[1719249224587,7.8365,127.61,127.47,6.3666]
[1719249224792,7.8358,127.62,127.49,6.3666]
[1719249225007,30.96,127.67,127.5,20.34]
[1719249225218,39.1698,127.65,127.49,6.3666]
[1719249225412,30.96,127.67,127.5,20.17]
[1719249225413,7.8358,127.62,127.5,20.17]
[1719249225719,10.0,127.79,127.55,53.6112]
[1719249225924,30.96,127.75,127.56,20.17]
[1719249226225,30.96,127.75,127.57,0.17]
[1719249226718,30.96,127.75,127.58,2.22579938]
[1719249226917,50.5302,127.75,127.59,0.34]
[1719249227098,30.96,127.75,127.59,0.17]
[1719249227301,7.8304,127.71,127.59,0.34]
[1719249227507,50.5303,127.75,127.6,6.2078]
[1719249227703,7.829,127.73,127.61,20.34]
[1719249227908,30.96,127.8,127.62,15.3819]
[1719249228123,7.8278,127.75,127.63,20.34]
[1719249228310,19.5687,127.76,127.63,20.17]
[1719249228517,61.29608498,127.87,127.64,6.255]
[1719249228518,21.8576,127.87,127.64,6.255]
[1719249228711,61.92,127.86,127.65,0.34]
[1719249228905,30.96,127.86,127.65,20.34]
[1719249229111,30.96,127.86,127.65,67.4]
[1719249229324,30.96,127.86,127.68,3.7775]
[1719249229532,6.29267859,127.88,127.7,6.1407]
[1719249229736,19.548,127.89,127.7,6.1407]
[1719249229737,7.8222,127.85,127.71,20.34]
[1719249230026,7.8225,127.84,127.71,20.34]
[1719249230216,19.5526,127.87,127.71,20.34]
[1719249230532,70.0478,127.92,127.71,20.34]
[1719249230533,30.96,127.89,127.72,6.2759]
[1719249230713,30.96,127.85,127.72,6.2759]
[1719249231107,20.34,127.88,127.72,6.2759]
[1719249231307,7.8199,127.88,127.73,20.17]
[1719249231538,30.96,127.92,127.73,20.17]
[1719249231743,18.670798,127.93,127.76,6.2817]
[1719249231935,7.8185,127.91,127.77,20.17]
[1719249232106,19.5383,127.96,127.78,0.17]
[1719249232107,7.8174,127.92,127.78,0.17]
[1719249232307,7.8217,127.85,127.77,20.0]
[1719249232523,30.96,127.93,127.77,20.0]
[1719249232909,19.5384,127.96,127.78,0.34]
[1719249233417,7.8275,127.97,127.78,47.4]
[1719249233734,7.8275,127.97,127.79,67.06]
[1719249234031,7.8156,127.95,127.8,26.8758]
[1719249234419,93.3961,127.99,127.81,4.7942]
[1719249234603,30.96,127.95,127.81,4.7942]
[1719249235005,70.0261,127.99,127.81,4.7942]
[1719249235006,23.37,127.94,127.81,4.7942]
[1719249235231,30.96,127.94,127.81,4.7942]
[1719249235434,7.8174,127.92,127.81,4.7942]
[1719249235628,7.8186,127.9,127.81,4.7942]
[1719249235947,0.17,127.91,127.81,4.7942]
[1719249236231,7.9885,127.91,127.81,4.7942]
[1719249236445,30.96,128.1,127.83,53.2113]
[1719249236613,30.96,128.1,127.84,20.34]
[1719249236614,7.8137,127.98,127.84,20.34]
[1719249236938,7.8131,127.99,127.85,6.0696]
[1719249237142,7.8124,128.01,127.87,6.0696]
[1719249237312,19.5251,128.05,127.88,20.34]
[1719249237521,7.8101,128.04,127.9,6.0696]
[1719249237715,7.8095,128.05,127.91,20.34]
[1719249238025,7.8089,128.06,127.91,19.84]
[1719249238209,19.514,128.12,127.92,6.6438]
[1719249238417,19.509,128.15,127.94,42.398]
[1719249238613,31.18778086,128.16,127.98,30.96]
[1719249238614,7.8051,128.13,127.98,30.96]
[1719249238918,0.22778086,128.16,128.01,47.06]
[1719249239120,0.22778086,128.16,128.02,78.19]
[1719249239431,0.22778086,128.16,128.02,0.17]
[1719249239645,0.22778086,128.16,128.0,6.0245]
[1719249239854,0.22778086,128.16,128.01,0.17]
[1719249239855,19.5111,128.14,128.01,0.17]
[1719249240147,0.22778086,128.16,128.01,0.34]
[1719249240313,0.22778086,128.16,128.0,6.0245]
[1719249240517,69.9777,128.15,128.0,6.0245]
[1719249240714,19.5117,128.13,128.0,6.0245]
[1719249240915,30.96,128.11,128.0,6.0245]
[1719249241224,7.803,128.16,128.0,6.0245]
[1719249241439,7.8028,128.16,128.0,6.0245]
[1719249241630,30.96,128.18,128.0,6.0245]
[1719249241834,19.5085,128.15,128.0,6.0245]
[1719249242138,7.8059,128.11,128.0,6.0245]
[1719249242323,19.5142,128.12,128.0,6.0245]
[1719249242521,30.96,128.12,128.0,6.0245]
[1719249242719,7.8105,128.04,128.0,6.0245]
[1719249242921,39.0099,128.18,128.0,6.0245]
[1719249242922,39.0214,128.14,128.0,6.0245]
[1719249243420,30.96,128.09,128.0,6.0245]
[1719249243620,30.96,128.05,127.94,4.7942]
[1719249244139,7.8136,127.99,127.94,4.7942]
[1719249244342,0.17,127.98,127.93,6.2345]
[1719249244716,30.96,128.05,127.93,6.2345]
[1719249244919,19.6954,128.04,127.93,6.2345]
[1719249245123,0.17,128.03,127.93,6.2345]
[1719249245418,30.96,127.97,127.81,6.3925]
[1719249245618,0.17,127.96,127.81,6.3925]
[1719249245936,0.34,127.96,127.81,6.3925]
[1719249246169,7.8177,127.92,127.81,6.3925]
[1719249246458,0.34,127.91,127.81,6.3925]
[1719249246746,0.17,127.9,127.81,6.3925]
[1719249246934,7.9885,127.91,127.81,6.3925]
[1719249247135,0.17,127.96,127.81,6.3925]
[1719249247527,30.96,127.94,127.81,6.3925]
[1719249247730,0.34,127.93,127.81,6.3925]
[1719249248134,30.96,127.9,127.82,2.22162013]
[1719249248336,23.71,127.89,127.82,2.22162013]
[1719249248551,23.71,127.89,127.7,4.69791095]
[1719249248552,0.34,127.89,127.71,6.1677]
[1719249248720,0.34,127.89,127.72,2.22335958]
[1719249248721,23.37,127.85,127.72,2.22335958]
[1719249249121,0.34,127.84,127.72,2.22335958]
[1719249249747,30.96,127.86,127.72,2.22335958]
[1719249249748,30.96,127.82,127.72,2.22335958]
[1719249249918,0.34,127.81,127.72,2.22335958]
[1719249250521,30.96,127.79,127.72,2.22335958]
[1719249250732,7.8268,127.77,127.72,2.22335958]
[1719249250929,0.34,127.76,127.72,2.22335958]
[1719249251142,0.17,127.75,127.72,2.22335958]
[1719249251316,7.829,127.73,127.72,2.22335958]
[1719249251527,0.17,127.73,127.72,2.22335958]
[1719249251742,0.17,127.78,127.72,2.22335958]
[1719249252053,0.34,127.78,127.65,6.6141]
[1719249252347,61.92,127.86,127.65,8.83867881]
[1719249252348,7.8242,127.81,127.65,8.83867881]
[1719249252549,19.5546,127.85,127.66,0.34]
[1719249252724,61.92,127.86,127.66,0.34]
[1719249252725,7.8229,127.83,127.66,0.34]
[1719249252920,30.96,127.86,127.66,47.4]
[1719249253120,70.0519,127.91,127.7,47.06]
[1719249253423,7.8253,127.79,127.71,0.17]
[1719249253639,7.825,127.8,127.69,6.431]
[1719249253823,19.557,127.84,127.69,6.431]
[1719249253824,30.96,127.83,127.69,6.431]
[1719249254028,7.8226,127.84,127.69,6.431]
[1719249254225,19.5538,127.86,127.7,20.0]
[1719249254430,7.8252,127.8,127.7,20.0]
[1719249254626,0.17,127.85,127.7,20.0]
[1719249254921,25.9863,127.85,127.7,20.0]
[1719249255130,7.8265,127.77,127.69,6.431]
[1719249255351,19.5583,127.83,127.69,6.431]
[1719249255524,7.8259,127.79,127.69,6.431]
[1719249255848,6.431,127.85,127.7,0.17]
[1719249256027,6.431,127.85,127.69,6.431]
[1719249256224,7.8271,127.77,127.69,6.431]
[1719249256443,7.826,127.78,127.69,6.431]
[1719249256640,50.519,127.82,127.69,6.431]
[1719249257041,19.563,127.8,127.69,6.431]
[1719249257341,7.8287,127.74,127.69,6.431]
[1719249257548,0.34,127.79,127.69,6.431]
[1719249257549,8.169,127.73,127.69,6.431]
[1719249257732,0.34,127.79,127.69,6.431]
[1719249257733,7.8284,127.74,127.69,6.431]
[1719249257924,0.17,127.79,127.69,6.431]
[1719249258959,30.96,127.78,127.69,6.431]
[1719249259135,7.8289,127.74,127.69,6.431]
[1719249259452,7.9994,127.73,127.65,2.22457881]
[1719249259758,0.17,127.73,127.65,2.22457881]
[1719249259926,0.17,127.74,127.65,2.22457881]
[1719249259927,7.8279,127.75,127.65,2.22457881]
[1719249260253,7.8282,127.75,127.65,2.22457881]
[1719249260465,19.5674,127.77,127.65,2.22457881]
[1719249260940,19.5709,127.75,127.65,2.22457881]
[1719249261144,50.5255,127.78,127.62,6.5423]
[1719249261359,7.8294,127.73,127.62,6.5423]
[1719249261653,0.34,127.77,127.62,8.76740175]
[1719249261654,0.34,127.72,127.62,8.76740175]
[1719249261853,58.6913,127.79,127.62,8.76740175]
[1719249262043,19.5674,127.77,127.62,8.76740175]
[1719249262243,0.34,127.76,127.62,8.76740175]
[1719249262646,7.8265,127.77,127.63,0.17]
[1719249262949,7.8239,127.82,127.64,7.8344]
[1719249263150,25.9853,127.85,127.66,6.0922]
[1719249263326,7.825,127.8,127.67,20.17]
[1719249263526,19.5588,127.82,127.67,20.17]
[1719249263747,7.8265,127.78,127.67,20.17]
[1719249264053,6.431,127.85,127.68,0.17]
[1719249264238,19.557,127.84,127.68,0.17]
[1719249264734,6.431,127.85,127.69,2.22388194]
[1719249264946,30.96,127.86,127.7,0.34]
[1719249265135,7.825,127.8,127.71,2.22353367]
[1719249265340,19.5518,127.87,127.72,0.34]
[1719249265650,30.96,127.92,127.73,53.587]
[1719249265828,30.96,127.92,127.74,20.17]
[1719249266032,30.96,127.92,127.75,2.39283746]
[1719249266243,30.96,127.92,127.76,0.17]
[1719249266532,3.130657,127.9,127.76,0.17]
[1719249266839,19.5318,128.0,127.79,47.06]
[1719249267031,50.4918,128.0,127.81,47.06]
[1719249267235,50.4918,128.0,127.8,20.34]
[1719249267236,19.5318,128.0,127.82,20.34]
[1719249267437,7.8174,127.92,127.82,20.17]
[1719249267644,50.4962,127.97,127.82,20.17]
[1719249267845,50.4962,127.97,127.83,20.17]
[1719249267846,7.815,127.96,127.83,20.17]
[1719249268049,30.96,127.97,127.83,20.17]
[1719249268237,7.8156,127.95,127.84,2.39127257]
[1719249268438,30.96,127.97,127.82,0.17]
[1719249268439,7.8163,127.94,127.85,2.39109883]
[1719249268684,7.817,127.93,127.85,2.39109883]
[1719249268832,30.96,127.97,127.85,2.39109883]
[1719249269355,0.17,127.96,127.85,2.22109883]
[1719249269529,0.17,127.96,127.86,8.73542512]
[1719249269731,39.0604,128.01,127.87,0.17]
[1719249269732,7.8148,127.97,127.87,0.17]
[1719249269949,7.8149,127.96,127.86,8.73542512]
[1719249270133,7.8149,127.96,127.87,0.17]
[1719249270452,7.8188,127.9,127.86,6.5145]
[1719249270666,23.37,127.93,127.75,6.1022]
[1719249270968,78.19373786,127.97,127.76,22.22266347]
[1719249270969,7.8212,127.86,127.76,22.22266347]
[1719249271138,54.33,127.92,127.76,22.22266347]
[1719249271139,7.8224,127.84,127.76,2.22266347]
[1719249271344,30.96,127.88,127.75,6.1022]
[1719249271551,0.34,127.87,127.75,6.1022]
[1719249271751,7.8227,127.84,127.75,6.1022]
[1719249271942,0.34,127.83,127.75,6.1022]
[1719249272143,7.8234,127.83,127.75,6.1022]
[1719249272335,0.34,127.84,127.75,6.1022]
[1719249272742,7.8235,127.82,127.75,6.1022]
[1719249272942,7.8241,127.81,127.75,6.1022]
[1719249273538,7.8241,127.81,127.63,19.587]
[1719249273539,7.8271,127.76,127.63,6.6483]
[1719249273740,0.17,127.78,127.63,6.6483]
[1719249273935,0.17,127.78,127.64,2.2247531]
[1719249274264,7.8266,127.77,127.64,2.2247531]
[1719249274566,0.17,127.79,127.65,7.8337]
[1719249274765,7.8244,127.81,127.66,47.06]
[1719249275146,19.55,127.88,127.66,66.6425]
[1719249275359,19.5545,127.87,127.69,47.06]
[1719249275554,19.5534,127.86,127.7,0.34]
[1719249275763,19.5534,127.86,127.7,20.34]
[1719249275764,7.8244,127.81,127.7,20.34]
[1719249275943,7.8244,127.81,127.7,0.34]
[1719249276360,7.8235,127.82,127.7,0.34]
[1719249276569,7.8247,127.8,127.7,0.34]
[1719249276863,7.8236,127.82,127.7,0.34]
[1719249277165,0.17,127.83,127.7,0.34]
[1719249277459,0.17,127.82,127.7,0.34]
[1719249277668,0.17,127.82,127.68,6.3959]
[1719249277669,7.8266,127.77,127.71,2.22353367]
[1719249277860,7.8278,127.75,127.71,2.22353367]
[1719249278173,7.8278,127.75,127.68,6.3959]
[1719249278356,0.17,127.74,127.68,6.3959]
[1719249278861,61.92,127.8,127.68,6.3959]
[1719249279067,30.96,127.85,127.69,2.22388194]
[1719249279246,0.17,127.79,127.69,2.22388194]
[1719249279763,0.34,127.79,127.68,6.3959]
[1719249279937,30.96,127.86,127.68,53.4559]
[1719249280139,7.8236,127.82,127.69,2.39388194]
[1719249280367,30.96,127.84,127.7,2.22370779]
[1719249280668,19.5579,127.83,127.7,2.22370779]
[1719249280856,19.5579,127.83,127.71,0.17]
[1719249281036,30.96,127.84,127.71,0.34]
[1719249281037,7.8235,127.82,127.71,0.34]
[1719249281240,70.412097,127.9,127.71,0.34]
[1719249281241,30.96,127.88,127.71,0.34]
[1719249281439,30.96,127.88,127.72,2.22335958]
[1719249281647,30.96,127.88,127.73,0.34]
[1719249281858,31.313869,127.91,127.73,0.34]
[1719249282049,31.313869,127.91,127.75,6.5403]
[1719249282237,7.8196,127.89,127.76,20.34]
[1719249282439,19.5454,127.91,127.76,20.34]
[1719249282661,7.8214,127.86,127.76,20.34]
[1719249282860,19.5491,127.89,127.76,0.34]
[1719249283064,23.37,127.89,127.75,6.5403]
[1719249283378,7.8197,127.89,127.76,20.17]
[1719249283691,30.96,127.98,127.77,0.17]
[1719249283870,39.7082,127.96,127.77,0.17]
[1719249284046,7.8167,127.93,127.78,47.06]
[1719249284368,42.9082,127.96,127.79,20.34]
[1719249284666,58.6112,127.97,127.8,0.17]
[1719249284851,58.6112,127.97,127.8,20.17]
[1719249284852,39.0743,127.97,127.8,20.17]
[1719249285054,62.4443,127.97,127.79,0.17]
[1719249285247,23.37,127.95,127.78,0.17]
[1719249285458,23.37,127.95,127.75,6.5403]
[1719249285459,23.37,127.93,127.75,6.5403]
[1719249285644,7.8216,127.86,127.75,6.5403]
[1719249285851,54.33,127.9,127.75,6.5403]
[1719249285852,7.8225,127.84,127.75,6.5403]
[1719249286050,0.17,127.85,127.75,6.5403]
[1719249286247,7.8184,127.91,127.75,6.5403]
[1719249286455,0.17,127.9,127.75,6.5403]
[1719249286944,7.8193,127.89,127.75,6.5403]
[1719249287152,7.8168,127.93,127.76,0.17]
[1719249287352,50.4954,127.98,127.76,0.34]
[1719249287353,54.45,127.98,127.76,0.34]
[1719249287663,19.5364,127.97,127.77,47.06]
[1719249287874,19.5364,127.97,127.78,67.4]
[1719249288051,19.5364,127.97,127.78,67.23]
[1719249288052,7.8168,127.93,127.78,67.23]
[1719249288362,30.96,127.98,127.81,53.1006]
[1719249288572,30.96,127.99,127.83,47.06]
[1719249288762,8.029673,127.96,127.84,0.34]
[1719249288950,8.029673,127.96,127.84,20.34]
[1719249289742,8.029673,127.96,127.84,0.34]
[1719249290062,0.214473,127.96,127.84,0.34]
[1719249290263,7.8163,127.94,127.84,0.34]
[1719249290461,0.214473,127.96,127.82,20.0]
[1719249290462,0.214473,127.96,127.83,0.34]
[1719249290660,7.8174,127.92,127.82,20.0]
[1719249290862,7.818,127.91,127.82,20.0]
[1719249291071,7.9875,127.92,127.82,20.0]
[1719249291376,7.8182,127.91,127.81,6.0406]
[1719249291549,7.9876,127.92,127.81,6.0406]
[1719249291949,7.818,127.91,127.81,6.0406]
[1719249292151,0.17,127.92,127.81,6.0406]
[1719249292354,7.818,127.91,127.81,6.0406]
[1719249292556,7.8187,127.9,127.81,6.0406]
[1719249293148,0.17,127.92,127.81,6.0406]
[1719249293572,0.214473,127.96,127.81,6.0406]
[1719249293866,7.8177,127.92,127.82,2.39162013]
[1719249294172,0.214473,127.96,127.82,2.22162013]
[1719249294352,19.5411,127.94,127.82,2.22162013]
[1719249294669,7.8178,127.92,127.82,2.22162013]
[1719249294861,7.8181,127.91,127.82,2.22162013]
[1719249295167,0.214473,127.96,127.83,0.17]
[1719249295364,8.156,127.95,127.83,0.34]
[1719249295570,0.214473,127.96,127.83,0.34]
[1719249296654,7.8155,127.95,127.83,0.34]
[1719249296857,7.8161,127.94,127.83,0.34]
[1719249297171,7.8157,127.95,127.83,0.34]
[1719249297378,7.8161,127.94,127.83,0.34]
[1719249297673,0.214473,127.96,127.83,0.34]
[1719249297674,7.8172,127.93,127.83,0.34]
[1719249297848,7.8166,127.94,127.83,0.34]
[1719249298049,0.17,127.95,127.83,0.34]
[1719249298270,0.214473,127.96,127.83,0.34]
[1719249298470,8.1556,127.95,127.83,0.34]
[1719249298784,0.214473,127.96,127.83,0.34]
[1719249299067,0.214473,127.96,127.85,13.8344]
[1719249299269,0.214473,127.96,127.86,69.62092512]
[1719249299475,0.214473,127.96,127.86,22.56092512]
[1719249300067,0.214473,127.96,127.86,69.62092512]
[1719249300253,0.214473,127.96,127.87,2.22075143]
[1719249300681,7.8181,127.91,127.87,2.22075143]
[1719249300880,0.214473,127.96,127.87,2.22075143]
[1719249301085,7.8187,127.9,127.87,2.22075143]
[1719249301253,7.8192,127.89,127.87,2.22075143]
[1719249301588,0.214473,127.96,127.85,6.0128]
[1719249302080,0.214473,127.96,127.85,53.0728]
[1719249302248,0.214473,127.96,127.81,30.96]
[1719249302249,7.8083,128.07,127.91,53.2587]
[1719249302455,50.4749,128.11,127.91,53.2587]
[1719249302653,7.8123,128.01,127.92,0.34]
[1719249302852,23.49,128.06,127.91,6.1987]
[1719249303051,7.8141,127.98,127.91,6.1987]
[1719249303259,39.0383,128.08,127.91,6.1987]
[1719249303260,7.8132,127.99,127.91,6.1987]
[1719249303473,7.8157,127.95,127.91,6.1987]
[1719249303693,7.8168,127.93,127.86,2.22092512]
[1719249303847,54.45,127.98,127.86,2.22092512]
[1719249304048,7.818,127.91,127.86,2.22092512]
[1719249304254,7.8168,127.93,127.86,2.22092512]
[1719249304453,7.8174,127.92,127.85,6.0143]
[1719249304677,0.34,127.91,127.85,6.0143]
[1719249304974,0.34,127.94,127.85,6.0143]
[1719249304975,0.17,127.9,127.85,6.0143]
[1719249305279,0.17,127.9,127.75,6.202]
[1719249305280,0.34,127.9,127.75,6.202]
[1719249305463,23.49,127.89,127.75,6.202]
[1719249305665,23.49,127.87,127.75,6.202]
[1719249305851,31.3,127.86,127.75,6.202]
[1719249306175,0.17,127.86,127.75,6.202]
[1719249306357,0.34,127.86,127.75,6.202]
[1719249306558,0.17,127.88,127.75,8.42483746]
[1719249306767,0.17,127.83,127.75,6.202]
[1719249307154,7.8241,127.81,127.75,6.202]
[1719249307360,0.17,127.8,127.75,6.202]
[1719249307677,0.17,127.8,127.63,10.0]
[1719249307678,0.34,127.8,127.69,6.298]
[1719249307875,0.17,127.8,127.69,6.298]
[1719249308086,30.96,127.88,127.69,53.358]
[1719249308293,7.9905,127.87,127.7,47.06]
[1719249308454,7.9905,127.87,127.69,25.8765]
[1719249308455,0.17,127.87,127.71,2.22353367]
[1719249308657,7.8236,127.82,127.71,2.22353367]
[1719249308868,0.17,127.87,127.71,2.22353367]
[1719249309180,23.66,127.87,127.71,2.22353367]
[1719249309382,7.823,127.83,127.71,2.22353367]
[1719249309583,0.17,127.82,127.71,2.22353367]
[1719249309879,7.8241,127.81,127.71,2.22353367]
[1719249310086,0.17,127.82,127.71,2.22353367]
[1719249310268,43.0386,127.89,127.71,2.22353367]
[1719249310651,7.8191,127.9,127.73,7.8287]
[1719249310958,19.5387,127.96,127.75,53.2343]
[1719249311172,7.8182,127.91,127.76,67.23]
[1719249311361,7.8173,127.93,127.77,0.17]
[1719249311691,61.92,128.04,127.81,6.2057]
[1719249311858,19.5338,127.99,127.82,20.34]
[1719249312053,30.96,128.0,127.83,2.22144634]
[1719249312260,54.45,127.96,127.83,2.22144634]
[1719249312476,30.96,127.96,127.83,2.22144634]
[1719249312780,30.96,128.0,127.84,0.34]
[1719249312955,7.8137,127.98,127.84,0.34]
[1719249313152,50.4855,128.04,127.84,47.4]
[1719249313359,73.9755,128.04,127.85,20.0]
[1719249313556,73.9755,128.04,127.87,6.4775]
[1719249313557,7.8101,128.04,127.87,6.4775]
[1719249313766,81.4546,128.1,127.88,0.34]
[1719249313767,70.0111,128.1,127.88,0.34]
[1719249313977,7.8083,128.07,127.89,7.8191]
[1719249314180,70.0111,128.1,127.91,47.06]
[1719249314181,50.4946,128.1,127.91,47.06]
[1719249314356,30.96,128.1,127.92,67.4]
[1719249314778,23.49,128.11,127.92,67.4]
[1719249314779,7.8062,128.11,127.94,47.06]
[1719249314958,31.258548,128.13,127.93,14.0093]
[1719249314959,7.8048,128.13,127.95,86.9385]
[1719249315156,7.8058,128.11,127.95,67.4]
[1719249315388,19.5124,128.13,127.95,67.4]
[1719249315689,7.8051,128.13,127.96,2.21918948]
[1719249315898,50.4674,128.16,127.97,0.34]
[1719249316184,7.8062,128.11,127.97,0.34]
[1719249316390,19.5024,128.19,127.97,10.34]
[1719249316574,19.5024,128.19,128.02,54.8712]
[1719249316575,7.8014,128.19,128.02,54.8712]
[1719249316767,7.8014,128.19,128.03,67.4]
[1719249316965,19.4971,128.23,128.05,47.06]
[1719249316966,7.799,128.23,128.05,47.06]
[1719249317189,31.234433,128.24,128.05,47.06]
[1719249317190,31.234433,128.24,128.06,0.34]
[1719249317367,30.96,128.27,128.09,47.06]
[1719249317582,7.7977,128.25,128.1,67.23]
[1719249317890,31.217034,128.31,128.12,53.541]
[1719249318089,31.217034,128.31,128.14,47.06]
[1719249318266,7.796,128.27,128.15,20.34]
[1719249318469,31.217034,128.31,128.15,20.34]
[1719249318470,7.7954,128.29,128.15,20.34]
[1719249318705,7.7941,128.31,128.16,2.38572632]
[1719249318876,7.7936,128.32,128.17,0.17]
[1719249320001,30.65,128.41,128.23,6.2434]
[1719249320187,30.65,128.41,128.24,20.0]
[1719249320188,19.4707,128.4,128.24,20.0]
[1719249320380,7.7911,128.36,128.24,20.0]
[1719249320578,7.7905,128.36,128.25,0.34]
[1719249320779,7.7915,128.35,128.24,20.0]
[1719249321099,7.7875,128.41,128.26,0.17]
[1719249321300,7.7888,128.39,128.26,0.17]
[1719249321604,100.2241,128.46,128.26,20.0]
[1719249321900,7.7905,128.37,128.27,0.17]
[1719249322082,7.79,128.37,128.24,67.06]
[1719249322405,19.4638,128.45,128.26,0.17]
[1719249322701,19.4673,128.43,128.27,2.21382619]
[1719249322873,30.65,128.46,128.28,0.34]
[1719249323488,19.4603,128.47,128.28,67.4]
[1719249323704,7.7875,128.42,128.28,47.4]
[1719249323875,19.4603,128.47,128.29,67.06]
[1719249324200,52.2943,128.52,128.27,2.21382619]
[1719249324201,30.65,128.44,128.27,2.21382619]
[1719249324909,7.785,128.46,128.27,40.65972619]
[1719249325081,52.2943,128.52,128.28,20.0]
[1719249325289,52.2943,128.52,128.32,47.06]
[1719249325290,7.7826,128.5,128.32,47.06]
[1719249325506,7.7826,128.5,128.33,67.06]
[1719249325806,7.7844,128.47,128.34,0.17]
[1719249326003,69.5535,128.54,128.34,0.34]
[1719249326175,7.7819,128.51,128.34,0.34]
[1719249326377,7.7809,128.52,128.35,77.71]
[1719249326576,30.65,128.54,128.36,67.4]
[1719249326879,7.7801,128.54,128.37,60.8622]
[1719249327081,7.7792,128.55,128.39,47.06]
[1719249327287,30.65,128.58,128.38,22.55192931]
[1719249327288,7.7823,128.5,128.4,0.17]
[1719249327476,19.4462,128.56,128.38,22.55192931]
[1719249327696,69.5375,128.58,128.38,2.21192931]
[1719249327893,19.4537,128.51,128.38,2.21192931]
[1719249328105,21.23438624,128.59,128.51,38.9074]
[1719249328281,16.4252789,128.9,128.53,19.60843336]
[1719249328609,30.65,128.73,128.3,38.72486388]
[1719249328775,30.65,128.73,128.28,64.81165474]
[1719249328776,30.65,128.61,128.37,58.20627471]
[1719249328976,30.65,128.57,128.34,36.71383046]
[1719249329176,30.65,128.57,128.38,32.86192931]
[1719249329396,30.65,128.57,128.39,47.23]
[1719249329602,30.65,128.61,128.39,47.23]
[1719249329802,7.7815,128.51,128.39,0.17]
[1719249329974,30.65,128.59,128.39,0.17]
[1719249330306,0.17,128.58,128.39,0.17]
[1719249330598,7.9474,128.58,128.4,47.06]
[1719249330802,0.17,128.58,128.41,0.17]
[1719249331380,7.781,128.52,128.39,30.0]
[1719249331698,50.0922,128.59,128.39,30.0]
[1719249331699,30.65,128.55,128.39,30.0]
[1719249331997,30.65,128.59,128.39,30.0]
[1719249332307,7.7799,128.54,128.39,60.65]
[1719249332480,4.995,128.7,128.4,47.06]
[1719249332678,30.65,128.65,128.41,30.0]
[1719249332890,7.7792,128.55,128.42,2.38124035]
[1719249333087,7.7798,128.54,128.43,2.21106817]
[1719249333289,30.65,128.57,128.43,2.21106817]
[1719249333479,30.65,128.65,128.43,49.27106817]